Workbook

Sheet BExRepositorySheet (hidden)
A1: 7

Sheet Ingresos
A3: EMPRESA DE ACUEDUCTO ALCANTARILLADO DE BOGOTA
A4: EJECUCION PRESUPUESTAL DE INGRESOS
A5: A 31 DE DICIEMBRE DE 2019
C6: 1 | D6: 2 | E6: 3 | F6: 4 | G6: 5 | H6: 6 | I6: 7=(6/4) | J6: 8=(4-6)
A7: CODIGO SECRETARIA DE HACIENDA | B7: RUBRO | C7: PRESUPUESTO INICIAL | D7: MODIFICACIONES MES | E7: MODIFICACIONES ACUMULADAS | F7: PRESUPUESTO DEFINITIVO | G7: RECAUDOS MES | H7: RECAUDOS ACUMULADOS | I7: % EJEC PPTAL | J7: SALDO POR RECAUDAR
A8: TOTAL INGRESOS + DISPONIBILIDAD INICIAL | C8: 5419077626000 | D8: -1045826374619 | E8: -713983038918 | F8: 4705094587082 | G8: 450656205635 | H8: 3500317539165 | I8: 0.7439420131 | J8: 1204777047917
A9: 310000000000000 | B9: DISPONIBILIDAD INICIAL | C9: 813719123000 | E9: 272051141955 | F9: 1085770264955 | G9: -1037000000 | H9: 1084727117842 | I9: 0.9990392561 | J9: 1043147113
A10: 310000000000000 | B10: DISPONIBILIDAD INICIAL | C10: 813719123000 | E10: 272051141955 | F10: 1085770264955 | G10: -1037000000 | H10: 1084727117842 | I10: 0.9990392561 | J10: 1043147113
A11: 320000000000000 | B11: INGRESOS | C11: 4605358503000 | D11: -1045826374619 | E11: -986034180873 | F11: 3619324322127 | G11: 451693205635 | H11: 2415590421323 | I11: 0.6674147455 | J11: 1203733900804
A12: 321000000000000 | B12: INGRESOS CORRIENTES | C12: 2165376401000 | D12: -325437535398 | E12: -325437535874 | F12: 1839938865126 | G12: 197469332971 | H12: 1874043096605 | I12: 1.018535524 | J12: -34104231479
A13: 321010000000000 | B13: INGRESOS DE EXPLOTACION | C13: 1758896574000 | F13: 1758896574000 | G13: 163213060736 | H13: 1800728905004 | I13: 1.023783281 | J13: -41832331004
A14: 321010200000000 | B14: VENTA DE SERVICIOS | C14: 1733463321000 | F14: 1733463321000 | G14: 158139956724 | H14: 1765608499773 | I14: 1.018543905 | J14: -32145178773
A15: 321010201000000 | B15: SERVICIO ACUEDUCTO | C15: 944794737000 | F15: 944794737000 | G15: 81505450965 | H15: 910782553612 | I15: 0.9640004521 | J15: 34012183388
A16: 321010202000000 | B16: SERVICIO ALCANTARILLADO | C16: 788668584000 | F16: 788668584000 | G16: 76634505759 | H16: 853357820225 | I16: 1.082023346 | J16: -64689236225
A17: 321010203000000 | B17: SERVICIO ASEO | H17: 1468125936 | J17: -1468125936
A18: 321019900000000 | B18: OTROS INGRESOS DE EXPLOTACION | C18: 25433253000 | F18: 25433253000 | G18: 5073104012 | H18: 35120405231 | I18: 1.380885301 | J18: -9687152231
A19: 321019902000000 | B19: INTERESES A USUARIOS | C19: 2900648000 | F19: 2900648000 | G19: 358704175 | H19: 4240031882 | I19: 1.461753333 | J19: -1339383882
A20: 321019903000000 | B20: PUBLICACIONES | C20: 5700000 | F20: 5700000 | G20: 367445 | H20: 26912341 | I20: 4.721463333 | J20: -21212341
A21: 321019904000000 | B21: SERVICIOS | C21: 639109000 | F21: 639109000 | H21: 367319637 | I21: 0.5747370746 | J21: 271789363
A22: 321019905000000 | B22: CUOTAS PARTES PENSIONALES | G22: 180054487 | H22: 1747806116 | J22: -1747806116
A23: 321019906000000 | B23: EXTRAORDINARIOS RECUPERACIÓN | G23: 3901212245 | H23: 11799850091 | J23: -11799850091
A24: 321019907000000 | B24: INGRESOS CENTRAL HIDROELÉCTRICA | C24: 11085124000 | F24: 11085124000 | G24: 178858069 | H24: 6126891398 | I24: 0.5527129329 | J24: 4958232602
A25: 321019908000000 | B25: SANCIONES Y MULTAS | H25: 192748952 | J25: -192748952
A26: 321019909000000 | B26: COMISIONES | C26: 10802672000 | F26: 10802672000 | G26: 453907591 | H26: 10618844814 | I26: 0.9829831743 | J26: 183827186
A27: 321020000000000 | B27: OTROS INGRESOS CORRIENTES | C27: 406479827000 | D27: -325437535398 | E27: -325437535874 | F27: 81042291126 | G27: 34256272235 | H27: 73314191601 | I27: 0.904641152 | J27: 7728099525
A28: 321020100000000 | B28: RENTAS CONTRACTUALES | C28: 406479827000 | D28: -325437535398 | E28: -325437535874 | F28: 81042291126 | G28: 34256272235 | H28: 73314191601 | I28: 0.904641152 | J28: 7728099525
A29: 321020199000000 | B29: OTRAS RENTAS CONTRACTUALES | C29: 406479827000 | D29: -325437535398 | E29: -325437535874 | F29: 81042291126 | G29: 34256272235 | H29: 73314191601 | I29: 0.904641152 | J29: 7728099525
A30: 322000000000000 | B30: TRANSFERENCIAS | C30: 239567781000 | E30: 25315303810 | F30: 264883084810 | G30: 122439186161 | H30: 248962863155 | I30: 0.9398971751 | J30: 15920221655
A31: 322030000000000 | B31: MUNICIPIOS | C31: 1601000000 | F31: 1601000000 | H31: 1938779365 | I31: 1.21098024 | J31: -337779365
A32: 322030000000000 | B32: MUNICIPIOS | C32: 1601000000 | F32: 1601000000 | H32: 1938779365 | I32: 1.21098024 | J32: -337779365
A33: 322040000000000 | B33: ADMINISTRACION CENTRAL | C33: 237966781000 | E33: 25315303810 | F33: 263282084810 | G33: 122439186161 | H33: 247024083790 | I33: 0.9382487379 | J33: 16258001020
A34: 322040300000000 | B34: SECRETARIA DISTRITAL DE HACIENDA | C34: 81747001000 | E34: 1277125638 | F34: 83024126638 | G34: 37684406161 | H34: 62890254216 | I34: 0.7574937161 | J34: 20133872422
A35: 322040500000000 | B35: SDH - MÍNIMO VITAL | C35: 71465000000 | F35: 71465000000 | H35: 66824409402 | I35: 0.9350648486 | J35: 4640590598
A36: 322040600000000 | B36: SDH - LEY 99 DE 1993 | C36: 84754780000 | F36: 84754780000 | G36: 84754780000 | H36: 84754780000 | I36: 1
A37: 322040800000000 | B37: LEY 99 DE 1993, SUBSIDIOS Y MÍNIMO VITAL - VIGENCIA ANTERIOR | E37: 24038178172 | F37: 24038178172 | H37: 32554640172 | I37: 1.354288996 | J37: -8516462000
A38: 323000000000000 | B38: RECURSOS DE CAPITAL | C38: 2200414321000 | D38: -720388839221 | E38: -685911948809 | F38: 1514502372191 | G38: 131784686503 | H38: 292584461563 | I38: 0.1931885132 | J38: 1221917910628
A39: 323010000000000 | B39: RECURSOS DEL CREDITO | C39: 1976633221000 | D39: -720388839221 | E39: -713253867816 | F39: 1263379353184 | J39: 1263379353184
A40: 323010100000000 | B40: CREDITO INTERNO | C40: 1976633221000 | D40: -720388839221 | E40: -713253867816 | F40: 1263379353184 | J40: 1263379353184
A41: 323010101000000 | B41: VIGENCIA | C41: 1976633221000 | D41: -720388839221 | E41: -713253867816 | F41: 1263379353184 | J41: 1263379353184
A42: 323020000000000 | B42: RENDIMIENTOS POR OPERACIONES FINANCIERAS | C42: 73532847000 | F42: 73532847000 | G42: 16682698675 | H42: 135343473241 | I42: 1.840585245 | J42: -61810626241
A43: 323020000000000 | B43: RENDIMIENTOS POR OPERACIONES FINANCIERAS | C43: 73532847000 | F43: 73532847000 | G43: 16682698675 | H43: 135343473241 | I43: 1.840585245 | J43: -61810626241
A44: 323090000000000 | B44: OTROS RECURSOS DE CAPITAL | C44: 150248253000 | E44: 27341919007 | F44: 177590172007 | G44: 115101987828 | H44: 157240988322 | I44: 0.8854149221 | J44: 20349183685
A45: 323090100000000 | B45: RECUPERACION PRESTAMOS - BIENESTAR | C45: 15650001000 | F45: 15650001000 | G45: 4317468760 | H45: 12754686261 | I45: 0.8149958751 | J45: 2895314739
A46: 323090200000000 | B46: INDEMNIZACIONES COMPAÑIAS DE SEGURO | G46: 31603992 | H46: 769509441 | J46: -769509441
A47: 323090300000000 | B47: RECURSOS FIDUCIA | C47: 103976295000 | E47: -1537 | F47: 103976293463 | G47: 85752915076 | H47: 85752915076 | I47: 0.8247352567 | J47: 18223378387
A48: 323099900000000 | B48: OTROS | C48: 30621957000 | E48: 27341920544 | F48: 57963877544 | G48: 25000000000 | H48: 57963877544 | I48: 1

Sheet Gastos
A2: EMPRESA DE ACUEDUCTO ALCANTARILLADO DE BOGOTA
A3: EJECUCION PRESUPUESTAL DE GASTOS
A4: A 31 DICIEMBRE DEL 2019 | C4: 1 | D4: 2 | E4: 3 | F4: 4=(1+3) | G4: 5 | H4: 6=(4-5) | I4: 7 | J4: 8 | K4: 9=(8/6) | L4: 11 | M4: 12 | N4: 13=(12/6)
A5: CODIGO SECRETARIA DE HACIENDA | B5: RUBRO | C5: PRESUPUESTO INICIAL | D5: MODIFICACIONES MES | E5: MODIFICACIONES ACUMULADAS | F5: PRESUPUESTO DEFINITIVO | G5: SUSPENSION | H5: APROPIACION DISPONIBLE | I5: COMPROMISOS MES | J5: COMPROMISOS ACUMULADOS | K5: % EJEC PPTAL | L5: AUTORIZACIONES DE GIRO | N5: % EJEC AUT. GIRO
L6: MES | M6: ACUMULADO
A7: TOTAL GASTOS + DISPONIBILIDAD FINAL | C7: 5419077626000 | D7: -1045826374619 | E7: -713983038918 | F7: 4705094587082 | H7: 4705094587082 | I7: 469402926928 | J7: 3538560921641 | K7: 0.7520700926 | L7: 302250458188 | M7: 2115087269568 | N7: 0.4495312964
A8: 330000000000000 | B8: GASTOS | C8: 5180526062000 | D8: -1394470682231 | E8: -1250495754967 | F8: 3930030307033 | H8: 3930030307033 | I8: 469402926928 | J8: 3538560921641 | K8: 0.9003902375 | L8: 302250458188 | M8: 2115087269568 | N8: 0.5381859946
A9: 331000000000000 | B9: GASTOS DE FUNCIONAMIENTO | C9: 1291563643000 | D9: -1500000000 | E9: 90592561782 | F9: 1382156204782 | H9: 1382156204782 | I9: 123557381960 | J9: 1318580585945 | K9: 0.9540025804 | L9: 136425411742 | M9: 1132242702256 | N9: 0.8191857753
A10: 331010000000000 | B10: SERVICIOS PERSONALES | C10: 358789399000 | D10: 1738052110 | E10: 3703800119 | F10: 362493199119 | H10: 362493199119 | I10: 43855653340 | J10: 338575933417 | K10: 0.9340200981 | L10: 51181230404 | M10: 322213071791 | N10: 0.8888803226
A11: 331010100000000 | B11: SERVICIOS PERSONALES ASOCIADOS A LA NOMINA | C11: 225857398000 | D11: 994420556 | E11: 2840628870 | F11: 228698026870 | H11: 228698026870 | I11: 32994097645 | J11: 214446395704 | K11: 0.9376836287 | L11: 33210668489 | M11: 214446395704 | N11: 0.9376836287
A12: 331010101000000 | B12: SUELDOS PERSONAL DE NOMINA | C12: 126490927000 | D12: -650000000 | E12: -504416474 | F12: 125986510526 | H12: 125986510526 | I12: 10944457962 | J12: 120684054829 | K12: 0.9579125124 | L12: 10976456659 | M12: 120684054829 | N12: 0.9579125124
A13: 331010102000000 | B13: GASTOS DE REPRESENTACION | C13: 75042000 | F13: 75042000 | H13: 75042000 | I13: 6071982 | J13: 12143964 | K13: 0.1618288958 | L13: 6071982 | M13: 12143964 | N13: 0.1618288958
A14: 331010103000000 | B14: HORAS EXTRAS, DOMINICALES, FESTIVOS, RECARGO NOCTURNO | C14: 16278640000 | D14: 650000000 | E14: 3027129435 | F14: 19305769435 | H14: 19305769435 | I14: 561388028 | J14: 17615914721 | K14: 0.912468927 | L14: 561388028 | M14: 17615914721 | N14: 0.912468927
A15: 331010104000000 | B15: SUBSIDIO DE TRANSPORTE | C15: 1968514000 | F15: 1968514000 | H15: 1968514000 | I15: 54156332 | J15: 1207670536 | K15: 0.6134934961 | L15: 54785513 | M15: 1207670536 | N15: 0.6134934961
A16: 331010105000000 | B16: SUBSIDIO DE ALIMENTACION | C16: 9532780000 | F16: 9532780000 | H16: 9532780000 | I16: 385255482 | J16: 8513914947 | K16: 0.8931198399 | L16: 387601566 | M16: 8513914947 | N16: 0.8931198399
A17: 331010106000000 | B17: BONIFICACION POR SERVICIOS PRESTADOS | C17: 437010000 | F17: 437010000 | H17: 437010000 | I17: 19447659 | J17: 252672104 | K17: 0.5781838036 | L17: 19447659 | M17: 252672104 | N17: 0.5781838036
A18: 331010107000000 | B18: PRIMA SEMESTRAL | C18: 15809419000 | E18: 46745094 | F18: 15856164094 | H18: 15856164094 | I18: -3792817 | J18: 15485277348 | K18: 0.976609302 | M18: 15485277348 | N18: 0.976609302
A19: 331010109000000 | B19: PRIMA DE NAVIDAD | C19: 16154480000 | D19: 1000000000 | E19: 1023524325 | F19: 17178004325 | H19: 17178004325 | I19: 16703367745 | J19: 16926184117 | K19: 0.9853405435 | L19: 16703367746 | M19: 16926184117 | N19: 0.9853405435
A20: 331010110000000 | B20: PRIMA DE VACACIONES | C20: 17654651000 | E20: 15176975 | F20: 17669827975 | H20: 17669827975 | I20: 3438194896 | J20: 15104409453 | K20: 0.8548136108 | L20: 3452906964 | M20: 15104409453 | N20: 0.8548136108
A21: 331010111000000 | B21: PRIMA TECNICA | C21: 4209393000 | E21: 68048959 | F21: 4277441959 | H21: 4277441959 | I21: 352414763 | J21: 3968853465 | K21: 0.9278567665 | L21: 352414763 | M21: 3968853465 | N21: 0.9278567665
A22: 331010112000000 | B22: OTRAS PRIMAS Y BONIFICACIONES | C22: 10407642000 | E22: -830000000 | F22: 9577642000 | H22: 9577642000 | I22: 98448590 | J22: 8423745081 | K22: 0.8795218156 | L22: 240216599 | M22: 8423745081 | N22: 0.8795218156
A23: 331010114000000 | B23: QUINQUENIO | C23: 6155108000 | F23: 6155108000 | H23: 6155108000 | I23: 434687023 | J23: 5756134742 | K23: 0.9351801369 | L23: 434687023 | M23: 5756134742 | N23: 0.9351801369
A24: 331010115000000 | B24: INDEMNIZACIONES LABORALES | C24: 100000000 | F24: 100000000 | H24: 100000000
A25: 331010116000000 | B25: CONVENCIONES COLECTIVAS O CONVENIOS | C25: 583792000 | D25: -5579444 | E25: -5579444 | F25: 578212556 | H25: 578212556 | J25: 495420397 | K25: 0.8568136265 | L25: 21323987 | M25: 495420397 | N25: 0.8568136265
A26: 331010200000000 | B26: SERVICIOS PERSONALES INDIRECTOS | C26: 67383543000 | D26: 243631554 | E26: -2755543186 | F26: 64627999814 | H26: 64627999814 | I26: 4520881675 | J26: 59759204860 | K26: 0.9246643101 | L26: 7437460507 | M26: 43396343234 | N26: 0.6714789775
A27: 331010203000000 | B27: HONORARIOS EMPRESA | C27: 54909345000 | D27: 243631554 | E27: 4171332669 | F27: 59080677669 | H27: 59080677669 | I27: 4313701853 | J27: 55283369888 | K27: 0.9357267396 | L27: 7024041581 | M27: 39176580230 | N27: 0.6631030952
A28: 331010204000000 | B28: REMUNERACION SERVICIOS TECNICOS | C28: 1568517000 | E28: -438592785 | F28: 1129924215 | H28: 1129924215 | I28: 21380000 | J28: 1074052114 | K28: 0.9505523466 | L28: 213234000 | M28: 817980146 | N28: 0.7239247864
A29: 331010299000000 | B29: OTROS GASTOS DE PERSONAL | C29: 10905681000 | E29: -6488283070 | F29: 4417397930 | H29: 4417397930 | I29: 185799822 | J29: 3401782858 | K29: 0.7700874841 | L29: 200184926 | M29: 3401782858 | N29: 0.7700874841
A30: 331010300000000 | B30: APORTES PATRONALES AL SECTOR PRIVADO Y PUBLICO | C30: 65548458000 | D30: 500000000 | E30: 3618714435 | F30: 69167172435 | H30: 69167172435 | I30: 6340674020 | J30: 64370332853 | K30: 0.9306486095 | L30: 10533101408 | M30: 64370332853 | N30: 0.9306486095
A31: 331010301000000 | B31: APORTES PATRONALES AL SECTOR PRIVADO | C31: 58397668000 | D31: 500000000 | E31: -11450378433 | F31: 46947289567 | H31: 46947289567 | I31: 4104454494 | J31: 43962862649 | K31: 0.9364302616 | L31: 7008046331 | M31: 43962862649 | N31: 0.9364302616
A32: 331010301010000 | B32: CESANTIAS FONDOS PRIVADOS | C32: 7625219000 | E32: -2380000000 | F32: 5245219000 | H32: 5245219000 | J32: 5082890907 | K32: 0.9690521801 | M32: 5082890907 | N32: 0.9690521801
A33: 331010301020000 | B33: PENSIONES FONDOS PRIVADOS | C33: 21171531000 | E33: -11778186868 | F33: 9393344132 | H33: 9393344132 | I33: 557618910 | J33: 7636685064 | K33: 0.8129889586 | L33: 1186375704 | M33: 7636685064 | N33: 0.8129889586
A34: 331010301030000 | B34: SALUD EPS PRIVADAS | C34: 20828865000 | D34: 500000000 | E34: 2707808435 | F34: 23536673435 | H34: 23536673435 | I34: 2235125765 | J34: 23237838206 | K34: 0.9873034212 | L34: 3975962608 | M34: 23237838206 | N34: 0.9873034212
A35: 331010301050000 | B35: CAJA DE COMPENSACION | C35: 8772053000 | F35: 8772053000 | H35: 8772053000 | I35: 1311709819 | J35: 8005448472 | K35: 0.912608311 | L35: 1845708019 | M35: 8005448472 | N35: 0.912608311
A36: 331010302000000 | B36: APORTES PATRONALES AL SECTOR PUBLICO | C36: 7150790000 | E36: 15069092868 | F36: 22219882868 | H36: 22219882868 | I36: 2236219526 | J36: 20407470204 | K36: 0.9184328435 | L36: 3525055077 | M36: 20407470204 | N36: 0.9184328435
A37: 331010302010000 | B37: CESANTIAS FONDOS PÚBLICOS | E37: 2380000000 | F37: 2380000000 | H37: 2380000000 | I37: 3597422 | J37: 2289314471 | K37: 0.9618968366 | L37: 3597422 | M37: 2289314471 | N37: 0.9618968366
A38: 331010302020000 | B38: PENSIONES FONDOS PÚBLICOS | E38: 11828186868 | F38: 11828186868 | H38: 11828186868 | I38: 925390267 | J38: 11724800869 | K38: 0.9912593536 | L38: 1833766353 | M38: 11724800869 | N38: 0.9912593536
A39: 331010302030000 | B39: SALUD EPS PUBLICOS | E39: 600000000 | F39: 600000000 | H39: 600000000 | I39: 28109437 | J39: 288478586 | K39: 0.4807976433 | L39: 50687902 | M39: 288478586 | N39: 0.4807976433
A40: 331010302040000 | B40: RIESGOS PROFESIONALES SECTOR PUBLICO | C40: 2124180000 | E40: 260906000 | F40: 2385086000 | H40: 2385086000 | I40: 175836300 | J40: 2361152100 | K40: 0.9899651836 | L40: 392507200 | M40: 2361152100 | N40: 0.9899651836
A41: 331010302050000 | B41: ICBF | C41: 3036439000 | F41: 3036439000 | H41: 3036439000 | I41: 662036400 | J41: 2246167887 | K41: 0.7397375304 | L41: 746677400 | M41: 2246167887 | N41: 0.7397375304
A42: 331010302060000 | B42: SENA | C42: 1990171000 | F42: 1990171000 | H42: 1990171000 | I42: 441249700 | J42: 1497556291 | K42: 0.7524761897 | L42: 497818800 | M42: 1497556291 | N42: 0.7524761897
A43: 331020000000000 | B43: GASTOS GENERALES | C43: 500514708000 | D43: -103967110 | E43: 43569877789 | F43: 544084585789 | H43: 544084585789 | I43: 64964349822 | J43: 522368265153 | K43: 0.960086499 | L43: 54691326460 | M43: 409868604068 | N43: 0.7533178016
A44: 331020100000000 | B44: ADQUISICION DE BIENES | C44: 48492183000 | E44: 17864676876 | F44: 66356859876 | H44: 66356859876 | I44: 25266722190 | J44: 59935712042 | K44: 0.9032330968 | L44: 6989686444 | M44: 24605369847 | N44: 0.3708037103
A45: 331020101000000 | B45: DOTACION | C45: 3286323000 | E45: 355093762 | F45: 3641416762 | H45: 3641416762 | I45: 1533778366 | J45: 3476683429 | K45: 0.9547611977 | L45: 160812992 | M45: 996143354 | N45: 0.2735592818
A46: 331020102000000 | B46: MATERIALES Y SUMINISTROS | C46: 11871646000 | E46: 1531404772 | F46: 13403050772 | H46: 13403050772 | I46: 798430681 | J46: 10649512454 | K46: 0.7945588385 | L46: 677213034 | M46: 3717017908 | N46: 0.2773262574
A47: 331020103000000 | B47: GASTOS DE COMPUTADOR | C47: 29306737000 | E47: 16343072385 | F47: 45649809385 | H47: 45649809385 | I47: 22934513143 | J47: 42199764480 | K47: 0.9244236734 | L47: 5620139165 | M47: 17551236087 | N47: 0.3844755613
A48: 331020104000000 | B48: COMBUSTIBLES, LUBRICANTES Y LLANTAS | C48: 4027477000 | E48: -364894043 | F48: 3662582957 | H48: 3662582957 | J48: 3609751679 | K48: 0.9855754044 | L48: 531521253 | M48: 2340972498 | N48: 0.6391589011
A49: 331020200000000 | B49: ADQUISICION DE SERVICIOS | C49: 168488698000 | D49: 806248765 | E49: 3534927413 | F49: 172023625413 | H49: 172023625413 | I49: 17527078175 | J49: 161117532207 | K49: 0.9366011896 | L49: 36905865846 | M49: 104259171228 | N49: 0.6060747236
A50: 331020201000000 | B50: VIATICOS Y GASTOS DE VIAJE | C50: 1178098000 | F50: 1178098000 | H50: 1178098000 | I50: 33077209 | J50: 537740462 | K50: 0.4564479882 | L50: 43888078 | M50: 505202899 | N50: 0.4288292646
A51: 331020202000000 | B51: GASTOS DE TRANSPORTE Y COMUNICACIÓN | C51: 15506533000 | E51: 232050883 | F51: 15738583883 | H51: 15738583883 | I51: 647064861 | J51: 14756868475 | K51: 0.9376236506 | L51: 2083883271 | M51: 10992654251 | N51: 0.698452563
A52: 331020203000000 | B52: IMPRESOS Y PUBLICACIONES | C52: 824609000 | D52: -1689590 | E52: 15564908 | F52: 840173908 | H52: 840173908 | I52: 399185846 | J52: 539750885 | K52: 0.6424275735 | L52: 49432968 | M52: 170277327 | N52: 0.2026691443
A53: 331020204000000 | B53: MANTENIMIENTO Y REPARACIONES | C53: 82189005000 | D53: 58020342 | E53: -4896246289 | F53: 77292758711 | H53: 77292758711 | I53: 13504845939 | J53: 71778496535 | K53: 0.9286574542 | L53: 9695871732 | M53: 39744769254 | N53: 0.5142107736
A54: 331020205000000 | B54: ARRENDAMIENTOS | C54: 12050191000 | E54: 80316944 | F54: 12130507944 | H54: 12130507944 | I54: 407843683 | J54: 11549985626 | K54: 0.9521436101 | L54: 1893984233 | M54: 6814430225 | N54: 0.561759677
A55: 331020206000000 | B55: SEGUROS | C55: 29125848000 | E55: 6535537245 | F55: 35661385245 | H55: 35661385245 | I55: 137814745 | J55: 35604316961 | K55: 0.9983997177 | L55: 20024855817 | M55: 33336656766 | N55: 0.9348110438
A56: 331020207000000 | B56: SUMINISTRO DE ALIMENTOS | C56: 4903521000 | E56: -1369894241 | F56: 3533626759 | H56: 3533626759 | J56: 3323353107 | K56: 0.9404935308 | L56: 252682908 | M56: 1690655845 | N56: 0.4784477706
A57: 331020208000000 | B57: SERVICIOS PUBLICOS | C57: 5865650000 | D57: 1024338569 | E57: 1024338569 | F57: 6889988569 | H57: 6889988569 | I57: 1115098339 | J57: 6633475385 | K57: 0.9627701583 | L57: 492420168 | M57: 4626248168 | N57: 0.67144497
A58: 331020209000000 | B58: CAPACITACION | C58: 900000000 | E58: 71387432 | F58: 971387432 | H58: 971387432 | I58: 75399996 | J58: 888448187 | K58: 0.9146177496 | L58: 157865180 | M58: 613774841 | N58: 0.6318538008
A59: 331020210000000 | B59: BIENESTAR E INCENTIVOS | C59: 4693616000 | D59: 5579444 | E59: 159301526 | F59: 4852917526 | H59: 4852917526 | I59: 695617440 | J59: 4695576874 | K59: 0.9675781319 | L59: 1344773753 | M59: 1997588329 | N59: 0.4116262678
A60: 331020211000000 | B60: PROMOCION INSTITUCIONAL | C60: 6731186000 | E60: 1883260730 | F60: 8614446730 | H60: 8614446730 | I60: 566955749 | J60: 6858499022 | K60: 0.7961624509 | L60: 405303895 | M60: 2452774190 | N60: 0.2847280002
A61: 331020212000000 | B61: INTERESES Y COMISIONES | C61: 3011310000 | D61: -280000000 | E61: -280000000 | F61: 2731310000 | H61: 2731310000 | I61: -128979887 | J61: 2594809284 | K61: 0.950023719 | L61: 66740697 | M61: 248074113 | N61: 0.09082605526
A62: 331020213000000 | B62: SALUD OCUPACIONAL | C62: 1367131000 | E62: 79309706 | F62: 1446440706 | H62: 1446440706 | I62: 73154255 | J62: 1214609404 | K62: 0.8397229136 | L62: 394163146 | M62: 924463020 | N62: 0.6391295655
A63: 331020214000000 | B63: PROGRAMAS Y CONVENIOS INSTITUCIONES | C63: 142000000 | F63: 142000000 | H63: 142000000 | J63: 141602000 | K63: 0.9971971831 | M63: 141602000 | N63: 0.9971971831
A64: 331020300000000 | B64: OTROS GASTOS GENERALES | C64: 283533827000 | D64: -910215875 | E64: 22170273500 | F64: 305704100500 | H64: 305704100500 | I64: 22170549457 | J64: 301315020904 | K64: 0.9856427193 | L64: 10795774170 | M64: 281004062993 | N64: 0.9192027929
A65: 331020301000000 | B65: IMPUESTOS, TASAS Y MULTAS | C65: 266871794000 | D65: 2083073851 | E65: 25465396711 | F65: 292337190711 | H65: 292337190711 | I65: 21681712092 | J65: 291169317380 | K65: 0.996005047 | L65: 9570930881 | M65: 273025895316 | N65: 0.9339417084
A66: 331020302000000 | B66: SENTENCIAS JUDICIALES | C66: 750000000 | F66: 750000000 | H66: 750000000 | I66: 105505461 | J66: 517023178 | K66: 0.6893642373 | L66: 105505461 | M66: 517023178 | N66: 0.6893642373
A67: 331020399000000 | B67: OTROS GASTOS GENERALES | C67: 15912033000 | D67: -2993289726 | E67: -3295123211 | F67: 12616909789 | H67: 12616909789 | I67: 383331904 | J67: 9628680346 | K67: 0.7631567878 | L67: 1119337828 | M67: 7461144499 | N67: 0.5913606916
A68: 331030000000000 | B68: TRANSFERENCIAS CORRIENTES | C68: 312085533000 | D68: -1500000000 | E68: -2221897117 | F68: 309863635883 | H68: 309863635883 | I68: 17423308738 | J68: 295027133177 | K68: 0.9521192519 | L68: 22790397064 | M68: 252432728970 | N68: 0.8146574807
A69: 331030300000000 | B69: TRANSFERENCIAS DE PREVISION Y SEGURIDAD SOCIAL | C69: 311435532000 | D69: -1500000000 | E69: -2452247714 | F69: 308983284286 | H69: 308983284286 | I69: 17418220927 | J69: 294831412167 | K69: 0.9541985834 | L69: 22785309253 | M69: 252237007960 | N69: 0.8163451578
A70: 331030301000000 | B70: PENSIONES Y JUBILACIONES | C70: 199914405000 | D70: -2100000000 | E70: -7505401452 | F70: 192409003548 | H70: 192409003548 | I70: 13153195343 | J70: 186946575908 | K70: 0.9716103325 | L70: 13190335555 | M70: 186810517580 | N70: 0.9709032017
A71: 331030302000000 | B71: CESANTIAS | C71: 17646342000 | D71: 600000000 | E71: 600000000 | F71: 18246342000 | H71: 18246342000 | I71: 4220095084 | J71: 14212451489 | K71: 0.7789205907 | L71: 4244462684 | M71: 14212451489 | N71: 0.7789205907
A72: 331030303000000 | B72: OTRAS TRANSFERENCIAS DE PREVISION SOCIAL | C72: 93874785000 | E72: 4453153738 | F72: 98327938738 | H72: 98327938738 | I72: 44930500 | J72: 93672384770 | K72: 0.9526527859 | L72: 5350511014 | M72: 51214038891 | N72: 0.5208493084
A73: 331030303010000 | B73: FONDO DE VIVIENDA | C73: 29566811000 | E73: 4460402184 | F73: 34027213184 | H73: 34027213184 | J73: 29647949716 | K73: 0.8713011423 | L73: 829975941 | M73: 18042233685 | N73: 0.5302295427
A74: 331030303020000 | B74: PAGOS SERVICIOS MEDICOS CONVENCIONALES | C74: 64307974000 | E74: -7248446 | F74: 64300725554 | H74: 64300725554 | I74: 44930500 | J74: 64024435054 | K74: 0.9957031511 | L74: 4520535073 | M74: 33171805206 | N74: 0.5158853951
A75: 331030400000000 | B75: OTRAS TRANSFERENCIAS | C75: 650001000 | E75: 230350597 | F75: 880351597 | H75: 880351597 | I75: 5087811 | J75: 195721010 | K75: 0.2223214119 | L75: 5087811 | M75: 195721010 | N75: 0.2223214119
A76: 331030401000000 | B76: DESTINATARIOS DE OTRAS TRANSFERENCIAS | C76: 650001000 | E76: 230350597 | F76: 880351597 | H76: 880351597 | I76: 5087811 | J76: 195721010 | K76: 0.2223214119 | L76: 5087811 | M76: 195721010 | N76: 0.2223214119
A77: 331040000000000 | B77: CUENTAS POR PAGAR FUNCIONAMIENTO | C77: 120174003000 | D77: -1634085000 | E77: 45540780991 | F77: 165714783991 | H77: 165714783991 | I77: -2685929940 | J77: 162609254198 | K77: 0.9812597904 | L77: 7762457814 | M77: 147728297427 | N77: 0.8914611833
A78: 331040000000000 | B78: CUENTAS POR PAGAR | C78: 120174003000 | D78: -1634085000 | E78: 45540780991 | F78: 165714783991 | H78: 165714783991 | I78: -2685929940 | J78: 162609254198 | K78: 0.9812597904 | L78: 7762457814 | M78: 147728297427 | N78: 0.8914611833
A79: 332000000000000 | B79: GASTOS DE OPERACION | C79: 317492682000 | D79: -9000000000 | E79: 14763704174 | F79: 332256386174 | H79: 332256386174 | I79: 18142883635 | J79: 294076766173 | K79: 0.8850898836 | L79: 25971704675 | M79: 197397849238 | N79: 0.5941130327
A80: 332010000000000 | B80: GASTOS DE COMERCIALIZACION | C80: 122590042000 | D80: -9500000000 | E80: 10925090864 | F80: 133515132864 | H80: 133515132864 | I80: 14884180493 | J80: 97866111862 | K80: 0.732996401 | L80: 10909393133 | M80: 37065854893 | N80: 0.2776153841
A81: 332010100000000 | B81: COMPRA DE BIENES PARA LA VENTA | C81: 4000000000 | F81: 4000000000 | H81: 4000000000 | J81: 3999999580 | K81: 0.999999895
A82: 332010101000000 | B82: MEDIDORES | C82: 4000000000 | F82: 4000000000 | H82: 4000000000 | J82: 3999999580 | K82: 0.999999895
A83: 332010200000000 | B83: COMPRA DE SERVICIOS PARA LA VENTA | C83: 10638855000 | E83: 269351023 | F83: 10908206023 | H83: 10908206023 | I83: -310382328 | J83: 10469732801 | K83: 0.9598033608 | L83: 1711209628 | M83: 4658988555 | N83: 0.4271085956
A84: 332010201000000 | B84: GESTION COMERCIAL | C84: 10638855000 | E84: -358875681 | F84: 10279979319 | H84: 10279979319 | J84: 10151888425 | K84: 0.9875397712 | L84: 1711209628 | M84: 4341144179 | N84: 0.4222911393
A85: 332010204000000 | B85: PROCESO DE ASEO | E85: 628226704 | F85: 628226704 | H85: 628226704 | I85: -310382328 | J85: 317844376 | K85: 0.5059389771 | M85: 317844376 | N85: 0.5059389771
A86: 332010500000000 | B86: OTROS GASTOS DE COMERCIALIZACION | C86: 107951187000 | D86: -9500000000 | E86: 10655739841 | F86: 118606926841 | H86: 118606926841 | I86: 15194562821 | J86: 83396379481 | K86: 0.7031324536 | L86: 9198183505 | M86: 32406866338 | N86: 0.2732291208
A87: 332010501000000 | B87: MANTENIMIENTO Y MATERIALES OPERACION INFRAESTRUCTURA | C87: 102301187000 | D87: -8254902711 | E87: -5739524230 | F87: 96561662770 | H87: 96561662770 | I87: 15194562821 | J87: 83246379481 | K87: 0.862105903 | L87: 9141327894 | M87: 32334960391 | N87: 0.3348633346
A88: 332010502000000 | B88: COMERCIALIZACION DE ENERGIA | C88: 150000000 | F88: 150000000 | H88: 150000000 | J88: 150000000 | K88: 1 | L88: 56855611 | M88: 71905947 | N88: 0.47937298
A89: 332010503000000 | B89: FONDO ATENCION EMERGENCIAS | C89: 4000000000 | D89: -1245097289 | E89: 16395264071 | F89: 20395264071 | H89: 20395264071
A90: 332010504000000 | B90: FONDO OBLIGACIONES CONTIGENTES | C90: 1500000000 | F90: 1500000000 | H90: 1500000000
A91: 332020000000000 | B91: GASTOS DE PRODUCCION | C91: 119951222000 | D91: 500000000 | E91: -12387505319 | F91: 107563716681 | H91: 107563716681 | I91: 3430466445 | J91: 105896469133 | K91: 0.9844999076 | L91: 9037328432 | M91: 89104062816 | N91: 0.8283840087
A92: 332020100000000 | B92: INDUSTRIAL | C92: 119951222000 | D92: 500000000 | E92: -12387505319 | F92: 107563716681 | H92: 107563716681 | I92: 3430466445 | J92: 105896469133 | K92: 0.9844999076 | L92: 9037328432 | M92: 89104062816 | N92: 0.8283840087
A93: 332020101000000 | B93: COMPRA AGUA EN BLOQUE | C93: 19933196000 | E93: -19889848731 | F93: 43347269 | H93: 43347269 | J93: 6835026 | K93: 0.1576806603 | M93: 6835026 | N93: 0.1576806603
A94: 332020102000000 | B94: ENERGIA PARA BOMBEO | C94: 59707405000 | D94: 500000000 | E94: 1300000000 | F94: 61007405000 | H94: 61007405000 | I94: 500000000 | J94: 61007405000 | K94: 1 | L94: 3852833275 | M94: 57358664577 | N94: 0.9401918435
A95: 332020103000000 | B95: TASA POR USO DE AGUA | C95: 6740115000 | D95: -715580404 | E95: 1450177408 | F95: 8190292408 | H95: 8190292408 | I95: 1164444565 | J95: 8190292408 | K95: 1 | L95: 1164444565 | M95: 8189540513 | N95: 0.9999081968
A96: 332020109000000 | B96: PRODUCTOS QUIMICOS | C96: 33570506000 | D96: 715580404 | E96: 4752166004 | F96: 38322672004 | H96: 38322672004 | I96: 1766021880 | J96: 36691936699 | K96: 0.9574472442 | L96: 4020050592 | M96: 23549022700 | N96: 0.6144932352
A97: 332030000000000 | B97: CUENTAS POR PAGAR | C97: 74951418000 | E97: 16226118629 | F97: 91177536629 | H97: 91177536629 | I97: -171763303 | J97: 90314185178 | K97: 0.9905310948 | L97: 6024983110 | M97: 71227931529 | N97: 0.7812004378
A98: 332030000000000 | B98: CUENTAS POR PAGAR | C98: 74951418000 | E98: 16226118629 | F98: 91177536629 | H98: 91177536629 | I98: -171763303 | J98: 90314185178 | K98: 0.9905310948 | L98: 6024983110 | M98: 71227931529 | N98: 0.7812004378
A99: 333000000000000 | B99: SERVICIO DE LA DEUDA | C99: 153572347000 | E99: 303368570 | F99: 153875715570 | H99: 153875715570 | I99: 291810000 | J99: 132847642595 | K99: 0.8633437843 | L99: 291810000 | M99: 132847642595 | N99: 0.8633437843
A100: 333010000000000 | B100: DEUDA INTERNA | C100: 133333821000 | E100: -4300000000 | F100: 129033821000 | H100: 129033821000 | J100: 126137407166 | K100: 0.9775530647 | M100: 126137407166 | N100: 0.9775530647
A101: 333010100000000 | B101: AMORTIZACION | C101: 77404000000 | E101: 37028000000 | F101: 114432000000 | H101: 114432000000 | J101: 114430888888 | K101: 0.9999902902 | M101: 114430888888 | N101: 0.9999902902
A102: 333010200000000 | B102: INTERESES | C102: 55330821000 | E102: -41328000000 | F102: 14002821000 | H102: 14002821000 | J102: 11706518278 | K102: 0.8360114207 | M102: 11706518278 | N102: 0.8360114207
A103: 333010300000000 | B103: COMISIONES Y OTROS | C103: 599000000 | F103: 599000000 | H103: 599000000
A104: 333030000000000 | B104: BONOS PENSIONALES | C104: 3427370000 | E104: 4300000000 | F104: 7727370000 | H104: 7727370000 | I104: 291810000 | J104: 6710235429 | K104: 0.8683724772 | L104: 291810000 | M104: 6710235429 | N104: 0.8683724772
A105: 333030000000000 | B105: BONOS PENSIONALES | C105: 3427370000 | E105: 4300000000 | F105: 7727370000 | H105: 7727370000 | I105: 291810000 | J105: 6710235429 | K105: 0.8683724772 | L105: 291810000 | M105: 6710235429 | N105: 0.8683724772
A106: 333040000000000 | B106: CUENTAS POR PAGAR | E106: 2370570 | F106: 2370570 | H106: 2370570
A107: 333040000000000 | B107: CUENTAS POR PAGAR | E107: 2370570 | F107: 2370570 | H107: 2370570
A108: 333050000000000 | B108: PASIVOS CONTINGENTES | C108: 16811156000 | E108: 300998000 | F108: 17112154000 | H108: 17112154000
A109: 333050000000000 | B109: PASIVOS CONTINGENTES | C109: 16811156000 | E109: 300998000 | F109: 17112154000 | H109: 17112154000
A110: 334000000000000 | B110: INVERSION | C110: 3417897390000 | D110: -1383970682231 | E110: -1356155389493 | F110: 2061742000507 | H110: 2061742000507 | I110: 327410851333 | J110: 1793055926928 | K110: 0.8696800698 | L110: 139561531771 | M110: 652599075479 | N110: 0.3165280017
A111: 334010000000000 | B111: DIRECTA | C111: 1783511313000 | D111: -639322874387 | E111: -602519431229 | F111: 1180991881771 | H111: 1180991881771 | I111: 327993549100 | J111: 981236905483 | K111: 0.8308582985 | L111: 57539714934 | M111: 154238457507 | N111: 0.1306007771
A112: 334011500000000 | B112: BOGOTA MEJOR PARA TODOS | C112: 1783511313000 | D112: -639322874387 | E112: -602519431229 | F112: 1180991881771 | H112: 1180991881771 | I112: 327993549100 | J112: 981236905483 | K112: 0.8308582985 | L112: 57539714934 | M112: 154238457507 | N112: 0.1306007771
A113: 334011502000000 | B113: PILAR DEMOCRACIA URBANA | C113: 1590353907000 | D113: -577199303658 | E113: -562492180219 | F113: 1027861726781 | H113: 1027861726781 | I113: 298075289611 | J113: 865590166849 | K113: 0.842127053 | L113: 43814219975 | M113: 125128580902 | N113: 0.1217367839
A114: 334011502130000 | B114: INFRAESTRUCTURA PARA EL DESARROLLO DEL HABITAT | C114: 1590353907000 | D114: -577199303658 | E114: -562492180219 | F114: 1027861726781 | H114: 1027861726781 | I114: 298075289611 | J114: 865590166849 | K114: 0.842127053 | L114: 43814219975 | M114: 125128580902 | N114: 0.1217367839
A115: 334011502130133 | B115: INFRAESTRUCTURA PARA EL DESARROLLO DEL HABITAT | C115: 1590353907000 | D115: -577199303658 | E115: -562492180219 | F115: 1027861726781 | H115: 1027861726781 | I115: 298075289611 | J115: 865590166849 | K115: 0.842127053 | L115: 43814219975 | M115: 125128580902 | N115: 0.1217367839
A116: 334011502130133000019 | B116: 0019 - CONSTRUCCIÓN DE REDES LOCALES PARA EL SERVICIO DE ALC | C116: 46423998000 | D116: -31925591495 | E116: -27417360408 | F116: 19006637592 | H116: 19006637592 | I116: 5641746374 | J116: 15895881249 | K116: 0.8363331585 | L116: 605247388 | M116: 2192821466 | N116: 0.1153713515
A117: 334011502130133000020 | B117: 0020 - CONSTRUCCIÓN DE REDES LOCALES PARA EL SERVICIO DE ALC | C117: 67831563000 | D117: -49537639882 | E117: -59709738128 | F117: 8121824872 | H117: 8121824872 | I117: 1738558381 | J117: 7827353403 | K117: 0.963743189 | L117: 311492650 | M117: 836303914 | N117: 0.1029699516
A118: 334011502130133000021 | B118: 0021 - CONSTRUCCIÓN DEL SISTEMA TRONCAL Y SECUNDARIO DE ALCA | C118: 15776019000 | D118: -6187136705 | E118: -3374191208 | F118: 12401827792 | H118: 12401827792 | I118: 328046918 | J118: 11390525301 | K118: 0.9184553674 | L118: 554098283 | M118: 1590490924 | N118: 0.1282464932
A119: 334011502130133000022 | B119: 0022 - CONSTRUCCIÓN DEL SISTEMA TRONCAL Y SECUNDARIO DE ALCA | C119: 16877024000 | D119: -1666934354 | E119: 40089203536 | F119: 56966227536 | H119: 56966227536 | I119: 5748950667 | J119: 55802426479 | K119: 0.979570333 | L119: 3282133327 | M119: 18880169444 | N119: 0.3314274134
A120: 334011502130133000050 | B120: 0050 - RENOVACIÓN, REHABILITACIÓN O REPOSICIÓN DE LOS SISTEM | C120: 361732708000 | D120: -124630986456 | E120: -177592651256 | F120: 184140056744 | H120: 184140056744 | I120: 128837384192 | J120: 167762243747 | K120: 0.9110578476 | L120: 2316703929 | M120: 9880120099 | N120: 0.05365546353
A121: 334011502130133000051 | B121: 0051 - RENOVACIÓN, REHABILITACIÓN O REPOSICIÓN DEL SISTEMA T | C121: 150553278000 | D121: -17187389934 | E121: -29229760883 | F121: 121323517117 | H121: 121323517117 | I121: 22720208025 | J121: 117991567885 | K121: 0.9725366581 | L121: 8622133466 | M121: 27515144779 | N121: 0.2267915193
A122: 334011502130133000052 | B122: 0052 - RENOVACIÓN, REHABILITACIÓN O REPOSICIÓN DEL SISTEMA T | C122: 97926991000 | D122: -4845679081 | E122: 1180688809 | F122: 99107679809 | H122: 99107679809 | I122: 35687624694 | J122: 98568198071 | K122: 0.9945566102 | L122: 11640886809 | M122: 20921922286 | N122: 0.211102937
A123: 334011502130133000053 | B123: 0053 - RENOVACIÓN, REHABILITACIÓN O REPOSICIÓN DEL SISTEMA T | C123: 28895578000 | D123: -2685287605 | E123: -526535429 | F123: 28369042571 | H123: 28369042571 | I123: 1252119165 | J123: 17015861314 | K123: 0.5998038627 | L123: 2092904540 | M123: 8117308326 | N123: 0.2861326147
A124: 334011502130133000054 | B124: 0054 - ACCIONES PARA EL SANEAMIENTO DEL RÍO BOGOTÁ | C124: 85540318000 | D124: 2305804185 | E124: 10343392760 | F124: 95883710760 | H124: 95883710760 | I124: 2663519826 | J124: 84940017559 | K124: 0.8858649387 | L124: 3104616243 | M124: 4076549074 | N124: 0.04251555391
A125: 334011502130133000068 | B125: 0068 - CONSTRUCCIÓN, RENOVACIÓN, REHABILITACIÓN O REPOSICIÓN | C125: 75000000000 | D125: -58593021294 | E125: -21524806625 | F125: 53475193375 | H125: 53475193375 | I125: 26085942291 | J125: 26823244291 | K125: 0.5016016324 | L125: 97153000 | M125: 500228637 | N125: 0.009354405387
A126: 334011502130133000081 | B126: 0081 - CORREDORES AMBIENTALES | C126: 354634309000 | D126: -164872156684 | E126: -154092077665 | F126: 200542231335 | H126: 200542231335 | I126: 35628288100 | J126: 121317370504 | K126: 0.6049467471 | L126: 1169342778 | M126: 9541878641 | N126: 0.0475803953
A127: 334011502130133007334 | B127: 7334 - CONSTRUCCIÓN Y EXPANSIÓN DEL SISTEMA DE ABASTECIMIENT | C127: 249020376000 | D127: -110188265021 | E127: -117198314672 | F127: 131822061328 | H127: 131822061328 | I127: 23037521353 | J127: 125295732479 | K127: 0.9504913762 | L127: 9059375577 | M127: 18081106894 | N127: 0.137162981
A128: 334011502130133007338 | B128: 7338 - CONSTRUCCIÓN DE REDES LOCALES PARA EL SERVICIO DE ACU | C128: 40141745000 | D128: -7185019332 | E128: -23440029050 | F128: 16701715950 | H128: 16701715950 | I128: 8705379625 | J128: 14959744567 | K128: 0.8957010532 | L128: 958131985 | M128: 2994536418 | N128: 0.1792951351
A129: 334011506000000 | B129: EJE TRANSV. SOSTENIB. AMBIENTAL BASADA EFICIENCIA ENERGETICA | C129: 94382111000 | D129: -45414539004 | E129: -12216777889 | F129: 82165333111 | H129: 82165333111 | I129: 10064923078 | J129: 71450298168 | K129: 0.8695917787 | L129: 8401812920 | M129: 18541944380 | N129: 0.2256662716
A130: 334011506380000 | B130: RECUPERACION Y MANEJO ESTRUCTURA ECOLOGICA PRINCIPAL | C130: 8151000000 | D130: 131882358 | E130: 29429263416 | F130: 37580263416 | H130: 37580263416 | I130: 8314473588 | J130: 28786544252 | K130: 0.7660016625 | L130: 2172042240 | M130: 9462074449 | N130: 0.2517830794
A131: 334011506380177 | B131: CONSOLIDACION DE LA ESTRUCTURA ECOLOGICA PRINCIPAL | C131: 8151000000 | D131: 131882358 | E131: 29429263416 | F131: 37580263416 | H131: 37580263416 | I131: 8314473588 | J131: 28786544252 | K131: 0.7660016625 | L131: 2172042240 | M131: 9462074449 | N131: 0.2517830794
A132: 334011506380177007341 | B132: 7341 - ADEC.HIDRAULICA RECUP.AMB.HUMED,QUEBRADAS,RIOS CUENCA | C132: 8151000000 | D132: 131882358 | E132: 29429263416 | F132: 37580263416 | H132: 37580263416 | I132: 8314473588 | J132: 28786544252 | K132: 0.7660016625 | L132: 2172042240 | M132: 9462074449 | N132: 0.2517830794
A133: 334011506380177007341 | B133: 7341 - ADECUACIÓN HIDRÁULICA Y RECUPERACIÓN AMBIENTAL DE HUM | C133: 8151000000 | D133: 131882358 | E133: 29429263416 | F133: 37580263416 | H133: 37580263416 | I133: 8314473588 | J133: 28786544252 | K133: 0.7660016625 | L133: 2172042240 | M133: 9462074449 | N133: 0.2517830794
A134: 334011506390000 | B134: AMBIENTE SANO PARA LA EQUIDAD Y DISFRUTE DEL CIUDADANO | C134: 86231111000 | D134: -45546421362 | E134: -41646041305 | F134: 44585069695 | H134: 44585069695 | I134: 1750449490 | J134: 42663753916 | K134: 0.956906745 | L134: 6229770680 | M134: 9079869931 | N134: 0.2036527024
A135: 334011506390179 | B135: AMBIENTE SANO | C135: 86231111000 | D135: -45546421362 | E135: -41646041305 | F135: 44585069695 | H135: 44585069695 | I135: 1750449490 | J135: 42663753916 | K135: 0.956906745 | L135: 6229770680 | M135: 9079869931 | N135: 0.2036527024
A136: 334011506390179000082 | B136: 0082 - PLAN DE SANEAMIENTO Y MANEJO DE VERTIMIENTOS | C136: 86231111000 | D136: -45546421362 | E136: -41646041305 | F136: 44585069695 | H136: 44585069695 | I136: 1750449490 | J136: 42663753916 | K136: 0.956906745 | L136: 6229770680 | M136: 9079869931 | N136: 0.2036527024
A137: 334011506390179000082 | B137: 0082 - PLAN DE SANEAMIENTO Y MANEJO DE VERTIMIENTOS | C137: 86231111000 | D137: -45546421362 | E137: -41646041305 | F137: 44585069695 | H137: 44585069695 | I137: 1750449490 | J137: 42663753916 | K137: 0.956906745 | L137: 6229770680 | M137: 9079869931 | N137: 0.2036527024
A138: 334011507000000 | B138: EJE TRANSVERSAL GOBIERNO LEGITIMO, FORT. LOCAL Y EFICIENTE | C138: 98775295000 | D138: -16709031725 | E138: -27810473121 | F138: 70964821879 | H138: 70964821879 | I138: 19853336411 | J138: 44196440466 | K138: 0.6227936504 | L138: 5323682039 | M138: 10567932225 | N138: 0.1489178997
A139: 334011507420000 | B139: TRANSPARENCIA, GESTION PUBLICA Y SERVICIO A LA CIUDADANIA | C139: 98775295000 | D139: -16709031725 | E139: -27810473121 | F139: 70964821879 | H139: 70964821879 | I139: 19853336411 | J139: 44196440466 | K139: 0.6227936504 | L139: 5323682039 | M139: 10567932225 | N139: 0.1489178997
A140: 334011507420185 | B140: FORTALECIMIENTO A LA GESTION PUBLICA EFECTIVA Y EFICIENTE | C140: 98775295000 | D140: -16709031725 | E140: -27810473121 | F140: 70964821879 | H140: 70964821879 | I140: 19853336411 | J140: 44196440466 | K140: 0.6227936504 | L140: 5323682039 | M140: 10567932225 | N140: 0.1489178997
A141: 334011507420185000055 | B141: 0055 - FORTALECIMIENTO ADMINISTRATIVO Y OPERATIVO EMPRESARIA | C141: 98775295000 | D141: -16709031725 | E141: -27810473121 | F141: 70964821879 | H141: 70964821879 | I141: 19853336411 | J141: 44196440466 | K141: 0.6227936504 | L141: 5323682039 | M141: 10567932225 | N141: 0.1489178997
A142: 334011507420185000055 | B142: 0055 - FORTALECIMIENTO ADMINISTRATIVO Y OPERATIVO EMPRESARIA | C142: 98775295000 | D142: -16709031725 | E142: -27810473121 | F142: 70964821879 | H142: 70964821879 | I142: 19853336411 | J142: 44196440466 | K142: 0.6227936504 | L142: 5323682039 | M142: 10567932225 | N142: 0.1489178997
A143: 334020000000000 | B143: TRANSFERENCIAS PARA INVERSION | C143: 872741045000 | D143: -744647807844 | E143: -748085864788 | F143: 124655180212 | H143: 124655180212 | I143: 2884758000 | J143: 59367374212 | K143: 0.4762527647 | L143: 2884758000 | M143: 59367374212 | N143: 0.4762527647
A144: 334020200000000 | B144: EMPRESAS DISTRITALES | C144: 872741045000 | D144: -744647807844 | E144: -748085864788 | F144: 124655180212 | H144: 124655180212 | I144: 2884758000 | J144: 59367374212 | K144: 0.4762527647 | L144: 2884758000 | M144: 59367374212 | N144: 0.4762527647
A145: 334030000000000 | B145: CUENTAS POR PAGAR | C145: 761645032000 | E145: -5550093476 | F145: 756094938524 | H145: 756094938524 | I145: -3467455767 | J145: 752451647233 | K145: 0.9951814367 | L145: 79137058837 | M145: 438993243760 | N145: 0.5806059813
A146: 334030000000000 | B146: CUENTAS POR PAGAR | C146: 761645032000 | E146: -5550093476 | F146: 756094938524 | H146: 756094938524 | I146: -3467455767 | J146: 752451647233 | K146: 0.9951814367 | L146: 79137058837 | M146: 438993243760 | N146: 0.5806059813
A147: 340000000000000 | B147: DISPONIBILIDAD FINAL | C147: 238551564000 | D147: 348644307612 | E147: 536512716049 | F147: 775064280049 | H147: 775064280049
A148: 340000000000000 | B148: DISPONIBILIDAD FINAL | C148: 238551564000 | D148: 348644307612 | E148: 536512716049 | F148: 775064280049 | H148: 775064280049
B153: JULIANA CASTRO BUITRAGO | F153: MAURICIO GOMEZ ARANGO
B154: Directora Presupuesto | F154: Gerente Corporativo Financiero

Sheet Graph (hidden)
G1: FEP8Qry3
F2: Dir. SIE - BI Rev 2014.01
F5: Information
F6: Autor | G6: RAGARCIA | I6: Últ.actual.pantalla | J6: 02/07/2014 09:16:31
F7: Usuario actual | G7: AOCAMPOR | I7: Fe.clave | J7: 02/07/2014
F8: Modificado por | G8: RAGARCIA | I8: Hora de modificación | J8: 12/06/2014 15:20:31
F9: InfoSitio | G9: 0PU_C02 | I9: Actualidad de datos | J9: 02/07/2014 00:39:33
F10: Nombre técnico query | G10: ZPU_C02_Q4001 | I10: Actualidad de datos (fecha) | J10: 02/07/2014
F11: Descripción query | G11: EJECUCION PRESUPUESTAL DE GASTOS - SECRETARIA DE HACIENDA | I11: Actualidad de los datos (hora) | J11: 00:39:33
C14: Filter
C15: Cta Entidades PSM | D15: GASTOS, DISPONIBILIDAD FINAL
C16: Ratios

Sheet V_Futuras_2019-2021
A2: EMPRESA DE ACUEDUCTO ALCANTARILLADO DE BOGOTA | M2: EMPRESA DE ACUEDUCTO ALCANTARILLADO DE BOGOTA | Y2: EMPRESA DE ACUEDUCTO ALCANTARILLADO DE BOGOTA | AK2: EMPRESA DE ACUEDUCTO ALCANTARILLADO DE BOGOTA
A3: EJECUCION PRESUPUESTAL DE VIGENCIAS FUTURAS | M3: EJECUCION PRESUPUESTAL DE VIGENCIAS FUTURAS | Y3: EJECUCION PRESUPUESTAL DE VIGENCIAS FUTURAS | AK3: EJECUCION PRESUPUESTAL DE VIGENCIAS FUTURAS
A4: A 31 DICIEMBRE DE 2019 | M4: A 31 DICIEMBRE DE 2019 | Y4: A 31 DICIEMBRE DE 2019 | AK4: A 31 DICIEMBRE DE 2019
A6: 2020 | M6: 2021 | Q6: 2020 | Y6: 2022 | AK6: 2020-2022
A7: CODIGO SECRETARIA DE HACIENDA | B7: CONCEPTO | C7: PRESUPUESTO INICIAL | D7: MODIFICACIONES MES | E7: MODIFICACIONES ACUMULADAS | F7: PRESUPUESTO DEFINITIVO | G7: COMPROMISOS MES | H7: COMPROMISOS ACUMULADOS | I7: % EJEC PPTAL | J7: DISPONIBILIDADES MES | K7: DISPONIBILIDADES ACUMULADAS | L7: SALDO DISPONIBLE | M7: CODIGO SECRETARIA DE HACIENDA | N7: CONCEPTO | O7: PRESUPUESTO INICIAL | P7: MODIFICACIONES MES | Q7: MODIFICACIONES ACUMULADAS | R7: PRESUPUESTO DEFINITIVO | S7: COMPROMISOS MES | T7: COMPROMISOS ACUMULADOS | U7: % EJEC PPTAL | V7: DISPONIBILIDADES MES | W7: DISPONIBILIDADES ACUMULADAS | X7: SALDO DISPONIBLE | Y7: CODIGO SECRETARIA DE HACIENDA | Z7: CONCEPTO | AA7: PRESUPUESTO INICIAL | AB7: MODIFICACIONES MES | AC7: MODIFICACIONES ACUMULADAS | AD7: PRESUPUESTO DEFINITIVO | AE7: COMPROMISOS MES | AF7: COMPROMISOS ACUMULADOS | AG7: % EJEC PPTAL | AH7: DISPONIBILIDADES MES | AI7: DISPONIBILIDADES ACUMULADAS | AJ7: SALDO DISPONIBLE | AK7: CODIGO SECRETARIA DE HACIENDA | AL7: CONCEPTO | AM7: Presupuesto Inicial VF Total | AN7: Modificaciones mes VF Total | AO7: Modificaciones Acumuladas VF Total | AP7: Presupuesto Definitivo VF Total | AQ7: Compromisos mes Total | AR7: Compromisos Acumulados Total | AS7: % EJEC PPTAL | AT7: Disponibilidades mes Total | AU7: Disponibilidades Acumuladas Total | AV7: Saldo Disponible Total
A8: 3 | B8: TOTAL GASTOS | C8: =C9 -> 192730564846 | D8: =D9 -> 0 | E8: 856734529380 | F8: 1049465094226 | G8: 333685221515 | H8: 689627626926 | I8: =H8/F8 -> 0.657122977 | J8: -629209250716 | K8: 0 | L8: 359837467300 | M8: 3 | N8: TOTAL GASTOS | O8: =O9 -> 65381426116 | P8: =P9 -> 0 | Q8: =Q9 -> 340824721601 | R8: =R9 -> 406206147717 | S8: =S9 -> 205953530739 | T8: =T9 -> 295541203313 | U8: =T8/R8 -> 0.7275645752 | V8: =V9 -> -316228109295 | W8: =W9 -> 0 | X8: =X9 -> 110664944404 | Y8: 3 | Z8: TOTAL GASTOS | AA8: =AA9 -> 0 | AB8: 0 | AC8: 40702546152 | AD8: 40702546152 | AE8: 23627949336 | AF8: 23627949336 | AG8: 0 | AH8: =AH9 -> -40702546152 | AI8: 0 | AJ8: 17074596816 | AK8: 3 | AL8: TOTAL GASTOS | AM8: =AM9 -> 258111990962 | AN8: =AN9 -> 0 | AO8: 1238261797133 | AP8: 1496373788095 | AQ8: 563266701590 | AR8: 1008796779575 | AS8: =AR8/AP8 -> 0.6741609534 | AT8: =AT9 -> -986139906163 | AU8: =AU9 -> 0 | AV8: =AV9 -> 487577008520
A9: 330000000000000 | B9: GASTOS | C9: =C10+C12 -> 192730564846 | D9: =D10+D12 -> 0 | E9: 856734529380 | F9: 1049465094226 | G9: 333685221515 | H9: 689627626926 | I9: =H9/F9 -> 0.657122977 | J9: =J10+J12 -> -629209250716 | K9: =K10+K12 -> 0 | L9: =L10+L12 -> 359837467300 | M9: 330000000000000 | N9: GASTOS | O9: =O10+O12 -> 65381426116 | P9: =P10+P12 -> 0 | Q9: =Q10+Q12 -> 340824721601 | R9: =R10+R12 -> 406206147717 | S9: =S10+S12 -> 205953530739 | T9: =T10+T12 -> 295541203313 | U9: =T9/R9 -> 0.7275645752 | V9: =V10+V12 -> -316228109295 | W9: =W10+W12 -> 0 | X9: =X10+X12 -> 110664944404 | Y9: 330000000000000 | Z9: GASTOS | AA9: =AA10+AA12 -> 0 | AB9: =AB10+AB12 -> 0 | AC9: =AC10+AC12 -> 40702546152 | AD9: =AD10+AD12 -> 40702546152 | AE9: =AE10+AE12 -> 23627949336 | AF9: =AF10+AF12 -> 23627949336 | AG9: 0 | AH9: =AH10+AH12 -> -40702546152 | AI9: =AI10+AI12 -> 0 | AJ9: =AJ10+AJ12 -> 17074596816 | AK9: 330000000000000 | AL9: GASTOS | AM9: =AM10+AM12 -> 258111990962 | AN9: =AN10+AN12 -> 0 | AO9: =AO10+AO12 -> 1238261797133 | AP9: =AP10+AP12 -> 1496373788095 | AQ9: =AQ10+AQ12 -> 563266701590 | AR9: =AR10+AR12 -> 1008796779575 | AS9: =AR9/AP9 -> 0.6741609534 | AT9: =AT10+AT12 -> -986139906163 | AU9: =AU10+AU12 -> 0 | AV9: =AV10+AV12 -> 487577008520
A10: 332000000000000 | B10: GASTOS DE OPERACIÓN | C10: =C11 -> 0 | D10: =D11 -> 0 | E10: 46615735757 | F10: 46615735757 | G10: 46615735757 | H10: 46615735757 | I10: 1 | J10: =J11 -> 0 | K10: =K11 -> 0 | L10: =L11 -> 0 | M10: 332000000000000 | N10: GASTOS DE OPERACIÓN | O10: =O11 -> 0 | P10: =P11 -> 0 | Q10: =Q11 -> 0 | R10: =R11 -> 0 | S10: =S11 -> 0 | T10: =T11 -> 0 | U10: 0 | V10: =V11 -> 0 | W10: =W11 -> 0 | X10: =X11 -> 0 | Y10: 332000000000000 | Z10: GASTOS DE OPERACIÓN | AA10: =AA11 -> 0 | AB10: =AB11 -> 0 | AC10: =AC11 -> 0 | AD10: =AD11 -> 0 | AE10: =AE11 -> 0 | AF10: =AF11 -> 0 | AG10: 0 | AH10: =AH11 -> 0 | AI10: =AI11 -> 0 | AJ10: =AJ11 -> 0 | AK10: 332000000000000 | AL10: GASTOS DE OPERACIÓN | AM10: =AM11 -> 0 | AN10: =AN11 -> 0 | AO10: =AO11 -> 46615735757 | AP10: =AP11 -> 46615735757 | AQ10: =AQ11 -> 46615735757 | AR10: =AR11 -> 46615735757 | AS10: 1 | AT10: =AT11 -> 0 | AU10: =AU11 -> 0 | AV10: =AV11 -> 0
A11: 332020102000000 | B11: ENERGIA PARA BOMBEO | C11: 0 | D11: 0 | E11: 46615735757 | F11: 46615735757 | G11: 46615735757 | H11: 46615735757 | I11: 1 | J11: 0 | K11: 0 | L11: 0 | M11: 332020102000000 | N11: ENERGIA PARA BOMBEO | O11: 0 | P11: 0 | Q11: 0 | R11: 0 | S11: 0 | T11: 0 | U11: 0 | V11: 0 | W11: 0 | X11: 0 | Y11: 332020102000000 | Z11: ENERGIA PARA BOMBEO | AA11: 0 | AB11: 0 | AC11: 0 | AD11: 0 | AE11: 0 | AF11: 0 | AG11: 0 | AH11: 0 | AI11: 0 | AJ11: 0 | AK11: 332020102000000 | AL11: ENERGIA PARA BOMBEO | AM11: 0 | AN11: 0 | AO11: 46615735757 | AP11: 46615735757 | AQ11: 46615735757 | AR11: 46615735757 | AS11: 1 | AT11: 0 | AU11: 0 | AV11: 0
A12: 334000000000000 | B12: INVERSION | C12: 192730564846 | D12: 0 | E12: 810118793623 | F12: 1002849358469 | G12: 287069485758 | H12: 643011891169 | I12: 0.6411849255 | J12: -629209250716 | K12: 0 | L12: 359837467300 | M12: 334000000000000 | N12: INVERSION | O12: 65381426116 | P12: 0 | Q12: 340824721601 | R12: 406206147717 | S12: 205953530739 | T12: 295541203313 | U12: 0.7275645752 | V12: -316228109295 | W12: 0 | X12: 110664944404 | Y12: 334000000000000 | Z12: INVERSION | AA12: 0 | AB12: 0 | AC12: 40702546152 | AD12: 40702546152 | AE12: 23627949336 | AF12: 23627949336 | AG12: 0 | AH12: -40702546152 | AI12: 0 | AJ12: 17074596816 | AK12: 334000000000000 | AL12: INVERSION | AM12: 258111990962 | AN12: 0 | AO12: 1191646061376 | AP12: 1449758052338 | AQ12: 516650965833 | AR12: 962181043818 | AS12: 0.6636838763 | AT12: -986139906163 | AU12: 0 | AV12: 487577008520
A13: 334010000000000 | B13: DIRECTA | C13: 192730564846 | D13: 0 | E13: 810118793623 | F13: 1002849358469 | G13: 287069485758 | H13: 643011891169 | I13: 0.6411849255 | J13: -629209250716 | K13: 0 | L13: 359837467300 | M13: 334010000000000 | N13: DIRECTA | O13: 65381426116 | P13: 0 | Q13: 340824721601 | R13: 406206147717 | S13: 205953530739 | T13: 295541203313 | U13: 0.7275645752 | V13: -316228109295 | W13: 0 | X13: 110664944404 | Y13: 334010000000000 | Z13: DIRECTA | AA13: 0 | AB13: 0 | AC13: 40702546152 | AD13: 40702546152 | AE13: 23627949336 | AF13: 23627949336 | AG13: 0 | AH13: -40702546152 | AI13: 0 | AJ13: 17074596816 | AK13: 334010000000000 | AL13: DIRECTA | AM13: 258111990962 | AN13: 0 | AO13: 1191646061376 | AP13: 1449758052338 | AQ13: 516650965833 | AR13: 962181043818 | AS13: 0.6636838763 | AT13: -986139906163 | AU13: 0 | AV13: 487577008520
A14: 334011500000000 | B14: BOGOTÁ MEJOR PARA TODOS | C14: 192730564846 | D14: 0 | E14: 810118793623 | F14: 1002849358469 | G14: 287069485758 | H14: 643011891169 | I14: 0.6411849255 | J14: -629209250716 | K14: 0 | L14: 359837467300 | M14: 334011500000000 | N14: BOGOTÁ MEJOR PARA TODOS | O14: 65381426116 | P14: 0 | Q14: 340824721601 | R14: 406206147717 | S14: 205953530739 | T14: 295541203313 | U14: 0.7275645752 | V14: -316228109295 | W14: 0 | X14: 110664944404 | Y14: 334011500000000 | Z14: BOGOTÁ MEJOR PARA TODOS | AA14: 0 | AB14: 0 | AC14: 40702546152 | AD14: 40702546152 | AE14: 23627949336 | AF14: 23627949336 | AG14: =AF14/AD14 -> 0.58050298 | AH14: -40702546152 | AI14: 0 | AJ14: 17074596816 | AK14: 334011500000000 | AL14: BOGOTÁ MEJOR PARA TODOS | AM14: 258111990962 | AN14: 0 | AO14: 1191646061376 | AP14: 1449758052338 | AQ14: 516650965833 | AR14: 962181043818 | AS14: 0.6636838763 | AT14: -986139906163 | AU14: 0 | AV14: 487577008520
A15: 334011502000000 | B15: PILAR DEMOCRACIA URBANA | C15: 192730564846 | D15: 0 | E15: 810118793623 | F15: 1002849358469 | G15: 287069485758 | H15: 643011891169 | I15: 0.6411849255 | J15: -629209250716 | K15: 0 | L15: 359837467300 | M15: 334011502000000 | N15: PILAR DEMOCRACIA URBANA | O15: 65381426116 | P15: 0 | Q15: 340824721601 | R15: 406206147717 | S15: 205953530739 | T15: 295541203313 | U15: 0.7275645752 | V15: -316228109295 | W15: 0 | X15: 110664944404 | Y15: 334011502000000 | Z15: PILAR DEMOCRACIA URBANA | AA15: 0 | AB15: 0 | AC15: 40702546152 | AD15: 40702546152 | AE15: 23627949336 | AF15: 23627949336 | AG15: =AF15/AD15 -> 0.58050298 | AH15: -40702546152 | AI15: 0 | AJ15: 17074596816 | AK15: 334011502000000 | AL15: PILAR DEMOCRACIA URBANA | AM15: 258111990962 | AN15: 0 | AO15: 1191646061376 | AP15: 1449758052338 | AQ15: 516650965833 | AR15: 962181043818 | AS15: 0.6636838763 | AT15: -986139906163 | AU15: 0 | AV15: 487577008520
A16: 334011502130000 | B16: INFRAESTRUCTURA PARA EL DESARROLLO DEL HÁBITAT. | C16: 192730564846 | D16: 0 | E16: 810118793623 | F16: 1002849358469 | G16: 287069485758 | H16: 643011891169 | I16: 0.6411849255 | J16: -629209250716 | K16: 0 | L16: 359837467300 | M16: 334011502130000 | N16: INFRAESTRUCTURA PARA EL DESARROLLO DEL HÁBITAT. | O16: 65381426116 | P16: 0 | Q16: 340824721601 | R16: 406206147717 | S16: 205953530739 | T16: 295541203313 | U16: 0.7275645752 | V16: -316228109295 | W16: 0 | X16: 110664944404 | Y16: 334011502130000 | Z16: INFRAESTRUCTURA PARA EL DESARROLLO DEL HÁBITAT. | AA16: 0 | AB16: 0 | AC16: 40702546152 | AD16: 40702546152 | AE16: 23627949336 | AF16: 23627949336 | AG16: 0.58050298 | AH16: -40702546152 | AI16: 0 | AJ16: 17074596816 | AK16: 334011502130000 | AL16: INFRAESTRUCTURA PARA EL DESARROLLO DEL HÁBITAT. | AM16: 258111990962 | AN16: 0 | AO16: 1191646061376 | AP16: 1449758052338 | AQ16: 516650965833 | AR16: 962181043818 | AS16: 0.6636838763 | AT16: -986139906163 | AU16: 0 | AV16: 487577008520
A17: 334011502130133 | B17: INFRAESTRUCTURA PARA EL DESARROLLO DEL HÁBITAT. | C17: =SUM(C18:C30) -> 192730564846 | D17: =SUM(D18:D30) -> 0 | E17: 810118793623 | F17: 1002849358469 | G17: 287069485758 | H17: 643011891169 | I17: 0.6411849255 | J17: =SUM(J18:J30) -> -629209250716 | K17: =SUM(K18:K30) -> 0 | L17: =SUM(L18:L30) -> 359837467300 | M17: 334011502130133 | N17: INFRAESTRUCTURA PARA EL DESARROLLO DEL HÁBITAT. | O17: =SUM(O18:O30) -> 65381426116 | P17: =SUM(P18:P30) -> 0 | Q17: 340824721601 | R17: 406206147717 | S17: 205953530739 | T17: 295541203313 | U17: 0.7275645752 | V17: =SUM(V18:V30) -> -316228109295 | W17: =SUM(W18:W30) -> 0 | X17: =SUM(X18:X30) -> 110664944404 | Y17: 334011502130133 | Z17: INFRAESTRUCTURA PARA EL DESARROLLO DEL HÁBITAT. | AA17: =SUM(AA18:AA30) -> 0 | AB17: =SUM(AB18:AB30) -> 0 | AC17: 40702546152 | AD17: 40702546152 | AE17: 23627949336 | AF17: 23627949336 | AG17: 0.58050298 | AH17: =SUM(AH18:AH30) -> -40702546152 | AI17: =SUM(AI18:AI30) -> 0 | AJ17: =SUM(AJ18:AJ30) -> 17074596816 | AK17: 334011502130133 | AL17: INFRAESTRUCTURA PARA EL DESARROLLO DEL HÁBITAT. | AM17: =SUM(AM18:AM30) -> 258111990962 | AN17: =SUM(AN18:AN30) -> 0 | AO17: 1191646061376 | AP17: 1449758052338 | AQ17: 516650965833 | AR17: 962181043818 | AS17: 0.6636838763 | AT17: =SUM(AT18:AT30) -> -986139906163 | AU17: =SUM(AU18:AU30) -> 0 | AV17: =SUM(AV18:AV30) -> 487577008520
A18: 334011502130133000019 | B18: CONST. REDES LOCALES SERVICIO DE ALCANTARILLADO PLUVIAL | C18: 0 | D18: 0 | E18: 15223867927 | F18: 15223867927 | G18: 2016567132 | H18: 2016567132 | I18: 0.1324608924 | J18: -15223867927 | K18: 0 | L18: 13207300795 | M18: 334011502130133000019 | N18: CONST. REDES LOCALES SERVICIO DE ALCANTARILLADO PLUVIAL | O18: 0 | P18: 0 | Q18: 11668762025 | R18: 11668762025 | S18: 0 | T18: 0 | U18: 0 | V18: -11668762025 | W18: 0 | X18: 11668762025 | Y18: 334011502130133000019 | Z18: CONST. REDES LOCALES SERVICIO DE ALCANTARILLADO PLUVIAL | AA18: 0 | AB18: 0 | AC18: 5275090598 | AD18: 5275090598 | AE18: 0 | AF18: 0 | AG18: 0 | AH18: -5275090598 | AI18: 0 | AJ18: 5275090598 | AK18: 334011502130133000019 | AL18: CONST. REDES LOCALES SERVICIO DE ALCANTARILLADO PLUVIAL | AM18: 0 | AN18: 0 | AO18: 32167720550 | AP18: 32167720550 | AQ18: 2016567132 | AR18: 2016567132 | AS18: 0.06268915228 | AT18: -32167720550 | AU18: 0 | AV18: 30151153418
A19: 334011502130133000020 | B19: CONST. REDES LOCALES SERVICIO DE ALCANTARILLADO SANITARIO | C19: 0 | D19: 0 | E19: 35335676768 | F19: 35335676768 | G19: 2597625091 | H19: 2597625091 | I19: 0.07351281562 | J19: -19797796359 | K19: 0 | L19: 32738051677 | M19: 334011502130133000020 | N19: CONST. REDES LOCALES SERVICIO DE ALCANTARILLADO SANITARIO | O19: 0 | P19: 0 | Q19: 14636414189 | R19: 14636414189 | S19: 0 | T19: 0 | U19: 0 | V19: -14636414189 | W19: 0 | X19: 14636414189 | Y19: 334011502130133000020 | Z19: CONST. REDES LOCALES SERVICIO DE ALCANTARILLADO SANITARIO | AA19: 0 | AB19: 0 | AC19: 7487307593 | AD19: 7487307593 | AE19: 0 | AF19: 0 | AG19: 0 | AH19: -7487307593 | AI19: 0 | AJ19: 7487307593 | AK19: 334011502130133000020 | AL19: CONST. REDES LOCALES SERVICIO DE ALCANTARILLADO SANITARIO | AM19: 0 | AN19: 0 | AO19: 57459398550 | AP19: 57459398550 | AQ19: 2597625091 | AR19: 2597625091 | AS19: 0.04520801047 | AT19: -41921518141 | AU19: 0 | AV19: 54861773459
A20: 334011502130133000050 | B20: REN, REHAB O REP SIST ABAST, DIST MATRIZ Y RED LOCAL AC. | C20: 0 | D20: 0 | E20: 263397155535 | F20: 263397155535 | G20: 194177883808 | H20: 234730036083 | I20: 0.8911638989 | J20: -222845003260 | K20: 0 | L20: 28667119452 | M20: 334011502130133000050 | N20: REN, REHAB O REP SIST ABAST, DIST MATRIZ Y RED LOCAL AC. | O20: 0 | P20: 0 | Q20: 209073149588 | R20: 209073149588 | S20: 190060120315 | T20: 201945486528 | U20: 0.965908281 | V20: -197187783375 | W20: 0 | X20: 7127663060 | Y20: 334011502130133000050 | Z20: REN, REHAB O REP SIST ABAST, DIST MATRIZ Y RED LOCAL AC. | AA20: 0 | AB20: 0 | AC20: 25071261728 | AD20: 25071261728 | AE20: 23627949336 | AF20: 23627949336 | AG20: 0.9424316013 | AH20: -25071261728 | AI20: 0 | AJ20: 1443312392 | AK20: 334011502130133000050 | AL20: REN, REHAB O REP SIST ABAST, DIST MATRIZ Y RED LOCAL AC. | AM20: 0 | AN20: 0 | AO20: 497541566851 | AP20: 497541566851 | AQ20: 407865953459 | AR20: 460303471947 | AS20: 0.9251558113 | AT20: -445104048363 | AU20: 0 | AV20: 37238094904
A21: 334011502130133000051 | B21: REN, REHAB O REP SIST TRONCAL SECUNDARIO Y LOCAL ALC. SANITA | C21: 0 | D21: 0 | E21: 84146137837 | F21: 84146137837 | G21: 11059545587 | H21: 51779694288 | I21: 0.6153543777 | J21: -43425989136 | K21: 0 | L21: 32366443549 | M21: 334011502130133000051 | N21: REN, REHAB O REP SIST TRONCAL SECUNDARIO Y LOCAL ALC. SANITA | O21: 0 | P21: 0 | Q21: 46424058191 | R21: 46424058191 | S21: 5849026257 | T21: 16588058607 | U21: 0.3573159963 | V21: -35685025841 | W21: 0 | X21: 29835999584 | Y21: 334011502130133000051 | Z21: REN, REHAB O REP SIST TRONCAL SECUNDARIO Y LOCAL ALC. SANITA | AA21: 0 | AB21: 0 | AC21: 0 | AD21: 0 | AE21: 0 | AF21: 0 | AG21: 0 | AH21: 0 | AI21: 0 | AJ21: 0 | AK21: 334011502130133000051 | AL21: REN, REHAB O REP SIST TRONCAL SECUNDARIO Y LOCAL ALC. SANITA | AM21: 0 | AN21: 0 | AO21: 130570196028 | AP21: 130570196028 | AQ21: 16908571844 | AR21: 68367752895 | AS21: 0.5236091771 | AT21: -79111014977 | AU21: 0 | AV21: 62202443133
A22: 334011502130133000052 | B22: REN REHAB O REP SIST TRONCAL SECUNDARIO Y LOCAL ALC. PLUVIAL | C22: 0 | D22: 0 | E22: 42637891924 | F22: 42637891924 | G22: 2713018746 | H22: 8269393938 | I22: 0.1939447183 | J22: -37081516732 | K22: 0 | L22: 34368497986 | M22: 334011502130133000052 | N22: REN REHAB O REP SIST TRONCAL SECUNDARIO Y LOCAL ALC. PLUVIAL | O22: 0 | P22: 0 | Q22: 15330719810 | R22: 15330719810 | S22: 1558462786 | T22: 3140310681 | U22: 0.2048377845 | V22: -13748871915 | W22: 0 | X22: 12190409129 | Y22: 334011502130133000052 | Z22: REN REHAB O REP SIST TRONCAL SECUNDARIO Y LOCAL ALC. PLUVIAL | AA22: 0 | AB22: 0 | AC22: 0 | AD22: 0 | AE22: 0 | AF22: 0 | AG22: 0 | AH22: 0 | AI22: 0 | AJ22: 0 | AK22: 334011502130133000052 | AL22: REN REHAB O REP SIST TRONCAL SECUNDARIO Y LOCAL ALC. PLUVIAL | AM22: 0 | AN22: 0 | AO22: 57968611734 | AP22: 57968611734 | AQ22: 4271481532 | AR22: 11409704619 | AS22: 0.1968255626 | AT22: -50830388647 | AU22: 0 | AV22: 46558907115
A23: 334011502130133000053 | B23: REN, REHAB O REP SIST TRONCAL, SECUNDARIO Y LOCAL ALC. COMBI | C23: 1979233837 | D23: 0 | E23: 20888409906 | F23: 22867643743 | G23: 0 | H23: 1979233837 | I23: 0.08655171732 | J23: -20888409906 | K23: 0 | L23: 20888409906 | M23: 334011502130133000053 | N23: REN, REHAB O REP SIST TRONCAL, SECUNDARIO Y LOCAL ALC. COMBI | O23: 0 | P23: 0 | Q23: 9628114834 | R23: 9628114834 | S23: 0 | T23: 0 | U23: 0 | V23: -9628114834 | W23: 0 | X23: 9628114834 | Y23: 334011502130133000053 | Z23: REN, REHAB O REP SIST TRONCAL, SECUNDARIO Y LOCAL ALC. COMBI | AA23: 0 | AB23: 0 | AC23: 0 | AD23: 0 | AE23: 0 | AF23: 0 | AG23: 0 | AH23: 0 | AI23: 0 | AJ23: 0 | AK23: 334011502130133000053 | AL23: REN, REHAB O REP SIST TRONCAL, SECUNDARIO Y LOCAL ALC. COMBI | AM23: 1979233837 | AN23: 0 | AO23: 30516524740 | AP23: 32495758577 | AQ23: 0 | AR23: 1979233837 | AS23: 0.06090745142 | AT23: -30516524740 | AU23: 0 | AV23: 30516524740
A24: 334011502130133000054 | B24: ACCIONES PARA EL SANEAMIENTO DEL RÍO BOGOTÁ | C24: 189945839941 | D24: 0 | E24: 10012411122 | F24: 199958251063 | G24: 0 | H24: 189945839941 | I24: 0.949927492 | J24: -10012411122 | K24: 0 | L24: 10012411122 | M24: 334011502130133000054 | N24: ACCIONES PARA EL SANEAMIENTO DEL RÍO BOGOTÁ | O24: 65381426116 | P24: 0 | Q24: 0 | R24: 65381426116 | S24: 0 | T24: 65381426116 | U24: 1 | V24: 0 | W24: 0 | X24: 0 | Y24: 334011502130133000054 | Z24: ACCIONES PARA EL SANEAMIENTO DEL RÍO BOGOTÁ | AA24: 0 | AB24: 0 | AC24: 0 | AD24: 0 | AE24: 0 | AF24: 0 | AG24: 0 | AH24: 0 | AI24: 0 | AJ24: 0 | AK24: 334011502130133000054 | AL24: ACCIONES PARA EL SANEAMIENTO DEL RÍO BOGOTÁ | AM24: 255327266057 | AN24: 0 | AO24: 10012411122 | AP24: 265339677179 | AQ24: 0 | AR24: 255327266057 | AS24: 0.9622656844 | AT24: -10012411122 | AU24: 0 | AV24: 10012411122
A25: 334011502130133000068 | B25: CONST, REN, REHAB O REP REDES ASOCIADAS INFRAESTRUCTURA VIAL | C25: 0 | D25: 0 | E25: 80703151888 | F25: 80703151888 | G25: 37567812930 | H25: 37567812930 | I25: 0.4655061426 | J25: -78543329955 | K25: 0 | L25: 43135338958 | M25: 334011502130133000068 | N25: CONST, REN, REHAB O REP REDES ASOCIADAS INFRAESTRUCTURA VIAL | O25: 0 | P25: 0 | Q25: 11145071561 | R25: 11145071561 | S25: 3318821982 | T25: 3318821982 | U25: 0.2977838199 | V25: -10754705713 | W25: 0 | X25: 7826249579 | Y25: 334011502130133000068 | Z25: CONST, REN, REHAB O REP REDES ASOCIADAS INFRAESTRUCTURA VIAL | AA25: 0 | AB25: 0 | AC25: 0 | AD25: 0 | AE25: 0 | AF25: 0 | AG25: 0 | AH25: 0 | AI25: 0 | AJ25: 0 | AK25: 334011502130133000068 | AL25: CONST, REN, REHAB O REP REDES ASOCIADAS INFRAESTRUCTURA VIAL | AM25: 0 | AN25: 0 | AO25: 91848223449 | AP25: 91848223449 | AQ25: 40886634912 | AR25: 40886634912 | AS25: 0.4451543359 | AT25: -89298035668 | AU25: 0 | AV25: 50961588537
A26: 334011502130133000081 | B26: CORREDORES AMBIENTALES | C26: 0 | D26: 0 | E26: 170245190978 | F26: 170245190978 | G26: 18258092225 | H26: 94641256622 | I26: 0.5559114832 | J26: -93862026581 | K26: 0 | L26: 75603934356 | M26: 334011502130133000081 | N26: CORREDORES AMBIENTALES | O26: 0 | P26: 0 | Q26: 0 | R26: 0 | S26: 0 | T26: 0 | U26: 0 | V26: 0 | W26: 0 | X26: 0 | Y26: 334011502130133000081 | Z26: CORREDORES AMBIENTALES | AA26: 0 | AB26: 0 | AC26: 0 | AD26: 0 | AE26: 0 | AF26: 0 | AG26: 0 | AH26: 0 | AI26: 0 | AJ26: 0 | AK26: 334011502130133000081 | AL26: CORREDORES AMBIENTALES | AM26: 0 | AN26: 0 | AO26: 170245190978 | AP26: 170245190978 | AQ26: 18258092225 | AR26: 94641256622 | AS26: 0.5559114832 | AT26: -93862026581 | AU26: 0 | AV26: 75603934356
A27: 334011502130133007334 | B27: CONST Y EXPANSIÓN DEL SISTEMA DE ABASTECIMIENTO Y MATRIZ AC. | C27: 0 | D27: 0 | E27: 34481702599 | F27: 34481702599 | G27: 17553771173 | H27: 17553771173 | I27: 0.5090749542 | J27: -34481702599 | K27: 0 | L27: 16927931426 | M27: 334011502130133007334 | N27: CONST Y EXPANSIÓN DEL SISTEMA DE ABASTECIMIENTO Y MATRIZ AC. | O27: 0 | P27: 0 | Q27: 13433170360 | R27: 13433170360 | S27: 5167099399 | T27: 5167099399 | U27: 0.3846522645 | V27: -13433170360 | W27: 0 | X27: 8266070961 | Y27: 334011502130133007334 | Z27: CONST Y EXPANSIÓN DEL SISTEMA DE ABASTECIMIENTO Y MATRIZ AC. | AA27: 0 | AB27: 0 | AC27: 0 | AD27: 0 | AE27: 0 | AF27: 0 | AG27: 0 | AH27: 0 | AI27: 0 | AJ27: 0 | AK27: 334011502130133007334 | AL27: CONST Y EXPANSIÓN DEL SISTEMA DE ABASTECIMIENTO Y MATRIZ AC. | AM27: 0 | AN27: 0 | AO27: 47914872959 | AP27: 47914872959 | AQ27: 22720870572 | AR27: 22720870572 | AS27: 0.4741924411 | AT27: -47914872959 | AU27: 0 | AV27: 25194002387
A28: 334011502130133007338 | B28: CONSTRUCCIÓN DE REDES LOCALES PARA EL SERVICIO DE ACUEDUCTO | C28: 805491068 | D28: 0 | E28: 6266247500 | F28: 7071738568 | G28: 1125169066 | H28: 1930660134 | I28: 0.273010677 | J28: -6266247500 | K28: 0 | L28: 5141078434 | M28: 334011502130133007338 | N28: CONSTRUCCIÓN DE REDES LOCALES PARA EL SERVICIO DE ACUEDUCTO | O28: 0 | P28: 0 | Q28: 3797745024 | R28: 3797745024 | S28: 0 | T28: 0 | U28: 0 | V28: -3797745024 | W28: 0 | X28: 3797745024 | Y28: 334011502130133007338 | Z28: CONSTRUCCIÓN DE REDES LOCALES PARA EL SERVICIO DE ACUEDUCTO | AA28: 0 | AB28: 0 | AC28: 2868886233 | AD28: 2868886233 | AE28: 0 | AF28: 0 | AG28: 0 | AH28: -2868886233 | AI28: 0 | AJ28: 2868886233 | AK28: 334011502130133007338 | AL28: CONSTRUCCIÓN DE REDES LOCALES PARA EL SERVICIO DE ACUEDUCTO | AM28: 805491068 | AN28: 0 | AO28: 12932878757 | AP28: 13738369825 | AQ28: 1125169066 | AR28: 1930660134 | AS28: 0.1405305112 | AT28: -12932878757 | AU28: 0 | AV28: 11807709691
A29: 334011506380177007341 | B29: ADECUACIÓN HIDRÁULICA Y RECUPERACIÓN AMBIENTAL DE HUMEDALES, | C29: 0 | D29: 0 | E29: 4203865028 | F29: 4203865028 | G29: 0 | H29: 0 | I29: 0 | J29: -4203865028 | K29: 0 | L29: 4203865028 | M29: 334011506380177007341 | N29: ADECUACIÓN HIDRÁULICA Y RECUPERACIÓN AMBIENTAL DE HUMEDALES, | O29: 0 | P29: 0 | Q29: 764011757 | R29: 764011757 | S29: 0 | T29: 0 | U29: 0 | V29: -764011757 | W29: 0 | X29: 764011757 | Y29: 334011506380177007341 | Z29: ADECUACIÓN HIDRÁULICA Y RECUPERACIÓN AMBIENTAL DE HUMEDALES, | AA29: 0 | AB29: 0 | AC29: 0 | AD29: 0 | AE29: 0 | AF29: 0 | AG29: 0 | AH29: 0 | AI29: 0 | AJ29: 0 | AK29: 334011506380177007341 | AL29: ADECUACIÓN HIDRÁULICA Y RECUPERACIÓN AMBIENTAL DE HUMEDALES, | AM29: 0 | AN29: 0 | AO29: 4967876785 | AP29: 4967876785 | AQ29: 0 | AR29: 0 | AS29: 0 | AT29: -4967876785 | AU29: 0 | AV29: 4967876785
A30: 334011506390179000082 | B30: PLAN DE SANEAMIENTO Y MANEJO DE VERTIMIENTOS | C30: 0 | D30: 0 | E30: 42577084611 | F30: 42577084611 | G30: 0 | H30: 0 | I30: 0 | J30: -42577084611 | K30: 0 | L30: 42577084611 | M30: 334011506390179000082 | N30: PLAN DE SANEAMIENTO Y MANEJO DE VERTIMIENTOS | O30: 0 | P30: 0 | Q30: 4923504262 | R30: 4923504262 | S30: 0 | T30: 0 | U30: 0 | V30: -4923504262 | W30: 0 | X30: 4923504262 | Y30: 334011506390179000082 | Z30: PLAN DE SANEAMIENTO Y MANEJO DE VERTIMIENTOS | AA30: 0 | AB30: 0 | AC30: 0 | AD30: 0 | AE30: 0 | AF30: 0 | AG30: 0 | AH30: 0 | AI30: 0 | AJ30: 0 | AK30: 334011506390179000082 | AL30: PLAN DE SANEAMIENTO Y MANEJO DE VERTIMIENTOS | AM30: 0 | AN30: 0 | AO30: 47500588873 | AP30: 47500588873 | AQ30: 0 | AR30: 0 | AS30: 0 | AT30: -47500588873 | AU30: 0 | AV30: 47500588873
